fUST/lending_fUST_20260601
["ID","MTS","AMOUNT","RATE_DAILY","PERIOD"]
[423579210,1780248647000,-501.55835326,0.00018996,2]
[423579212,1780248647000,-500.0,0.00018996,2]
[423579213,1780248647000,-500.70988643,0.00018996,2]
[423579203,1780248647000,-151.0,0.00018866,2]
[423579207,1780248647000,-480.05,0.00018996,2]
[423579217,1780248647000,-500.0,0.00018996,2]
[423579214,1780248647000,-501.18216765,0.00018996,2]
[423579221,1780248647000,-500.0,0.00018996,2]
[423579225,1780248647000,-500.8181683,0.00018996,2]
[423579218,1780248647000,-500.0,0.00018996,2]
[423579219,1780248647000,-500.0,0.00018996,2]
[423579235,1780248647000,-500.0,0.00018996,2]
[423579226,1780248647000,-500.0,0.00018996,2]
[423579224,1780248647000,-500.67681764,0.00018996,2]
[423579234,1780248647000,-501.43343897,0.00018996,2]
[423579223,1780248647000,-501.10483818,0.00018996,2]
[423579229,1780248647000,-472.77487268,0.00018996,2]
[423579227,1780248647000,-501.793546,0.00018996,2]
[423579233,1780248647000,-500.85944196,0.00018996,2]
[423579228,1780248647000,-500.0,0.00018996,2]
[423579230,1780248647000,-501.53882403,0.00018996,2]
[423579201,1780248647000,-500.0,0.00018865,2]
[423579222,1780248647000,-500.0,0.00018996,2]
[423579198,1780248647000,-817.3533,0.00018865,2]
[423579232,1780248647000,-500.0,0.00018996,2]
[423579206,1780248647000,-500.54146961,0.00018996,2]
[423579184,1780248647000,-500.0,0.00018865,2]
[423579183,1780248647000,-1807.05,0.00018864,2]
[423579175,1780248647000,-552.58,0.00018864,2]
[423579180,1780248647000,-1567.21,0.00018864,2]
[423579177,1780248647000,-500.0,0.00018864,2]
[423579182,1780248647000,-3745.47,0.00018864,2]
[423579178,1780248647000,-534.45,0.00018864,2]
[423579181,1780248647000,-500.0,0.00018864,2]
[423579176,1780248647000,-500.0,0.00018864,2]
[423579179,1780248647000,-500.0,0.00018864,2]
[423579190,1780248647000,-151.0,0.00018865,2]
[423579188,1780248647000,-151.0,0.00018865,2]
[423579192,1780248647000,-500.0,0.00018865,2]
[423579209,1780248647000,-500.0,0.00018996,2]
[423579195,1780248647000,-1670.88,0.00018865,2]
[423579196,1780248647000,-500.0,0.00018865,2]
[423579189,1780248647000,-500.0,0.00018865,2]
[423579186,1780248647000,-151.0,0.00018865,2]
[423579185,1780248647000,-151.0,0.00018865,2]
[423579193,1780248647000,-603.91,0.00018865,2]
[423579194,1780248647000,-500.0,0.00018865,2]
[423579191,1780248647000,-944.99,0.00018865,2]
[423579197,1780248647000,-542.05,0.00018865,2]
[423579199,1780248647000,-572.53,0.00018865,2]
[423579208,1780248647000,-403.01153824,0.00018996,2]
[423579205,1780248647000,-500.0,0.00018996,2]
[423579200,1780248647000,-603.85,0.00018865,2]
[423579202,1780248647000,-151.0,0.00018866,2]
[423579187,1780248647000,-151.0,0.00018865,2]
[423579236,1780248647000,-500.0,0.00018996,2]
[423579231,1780248647000,-516.77540786,0.00018996,2]
[423579275,1780248647000,-500.0,0.00018996,2]
[423579267,1780248647000,-501.25012784,0.00018996,2]
[423579270,1780248647000,-500.93407539,0.00018996,2]
[423579280,1780248647000,-501.08515855,0.00018996,2]
[423579273,1780248647000,-501.00256019,0.00018996,2]
[423579237,1780248647000,-500.0,0.00018996,2]
[423579279,1780248647000,-500.84127414,0.00018996,2]
[423579272,1780248647000,-501.34269705,0.00018996,2]
[423579282,1780248647000,-578.77924058,0.00018996,2]
[423579284,1780248647000,-500.0,0.00018996,2]
[423579281,1780248647000,-500.0,0.00018996,2]
[423579283,1780248647000,-501.02643638,0.00018996,2]
[423579274,1780248647000,-501.70596363,0.00018996,2]
[423579277,1780248647000,-502.0904087,0.00018996,2]
[423579266,1780248647000,-501.77579441,0.00018996,2]
[423579276,1780248647000,-501.24458947,0.00018996,2]
[423579289,1780248647000,-500.0,0.00018996,2]
[423579288,1780248647000,-500.0,0.00018996,2]
[423579287,1780248647000,-500.7860782,0.00018996,2]
[423579290,1780248647000,-503.66803589,0.00018996,2]
[423579295,1780248647000,-500.0,0.00018996,2]
[423579293,1780248647000,-502.91711668,0.00018996,2]
[423579291,1780248647000,-500.0,0.00018996,2]
[423579294,1780248647000,-503.42485378,0.00018996,2]
[423579292,1780248647000,-501.34325615,0.00018996,2]
[423579286,1780248647000,-501.69786003,0.00018996,2]
[423579296,1780248647000,-501.28037089,0.00018996,2]
[423579297,1780248647000,-500.0,0.00018996,2]
[423579298,1780248647000,-500.69915305,0.00018996,2]
[423579285,1780248647000,-501.42836215,0.00018996,2]
[423579269,1780248647000,-501.41248628,0.00018996,2]
[423579278,1780248647000,-501.18776409,0.00018996,2]
[423579265,1780248647000,-571.50503077,0.00018996,2]
[423579240,1780248647000,-502.42510983,0.00018996,2]
[423579249,1780248647000,-515.68644874,0.00018996,2]
[423579242,1780248647000,-500.0,0.00018996,2]
[423579241,1780248647000,-500.0,0.00018996,2]
[423579238,1780248647000,-501.70924064,0.00018996,2]
[423579239,1780248647000,-500.0,0.00018996,2]
[423579243,1780248647000,-506.90328137,0.00018996,2]
[423579247,1780248647000,-502.12331871,0.00018996,2]
[423579268,1780248647000,-500.0,0.00018996,2]
[423579248,1780248647000,-505.6434876,0.00018996,2]
[423579244,1780248647000,-500.70434691,0.00018996,2]
[423579246,1780248647000,-500.0,0.00018996,2]
[423579262,1780248647000,-502.29997054,0.00018996,2]
[423579261,1780248647000,-501.20150084,0.00018996,2]
[423579245,1780248647000,-500.0,0.00018996,2]
[423579271,1780248647000,-500.71291914,0.00018996,2]
[423579251,1780248647000,-460.4,0.00018996,2]
[423579264,1780248647000,-501.25427587,0.00018996,2]
[423579260,1780248647000,-500.0,0.00018996,2]
[423579259,1780248647000,-501.31517033,0.00018996,2]
[423579257,1780248647000,-501.25476523,0.00018996,2]
[423579256,1780248647000,-500.950916,0.00018996,2]
[423579258,1780248647000,-540.87970082,0.00018996,2]
[423579254,1780248647000,-222.73170115,0.00018996,2]
[423579253,1780248647000,-501.2765277,0.00018996,2]
[423579252,1780248647000,-644.51488071,0.00018996,2]
[423579250,1780248647000,-500.72294558,0.00018996,2]
[423579263,1780248647000,-330.46011662,0.00018996,2]
[423579255,1780248647000,-500.0,0.00018996,2]
[423579350,1780248648000,-252.05113925,0.00018996,2]
[423579345,1780248648000,-500.0,0.00018996,2]
[423579342,1780248648000,-501.54227944,0.00018996,2]
[423579343,1780248648000,-500.0,0.00018996,2]
[423579339,1780248648000,-369.62450799,0.00018996,2]
[423579341,1780248648000,-500.0,0.00018996,2]
[423579332,1780248648000,-501.31092162,0.00018996,2]
[423579334,1780248648000,-501.51563016,0.00018996,2]
[423579329,1780248648000,-151.0,0.00018996,2]
[423579330,1780248648000,-500.0,0.00018996,2]
[423579336,1780248648000,-552.97079676,0.00018996,2]
[423579333,1780248648000,-151.0,0.00018996,2]
[423579340,1780248648000,-501.48438737,0.00018996,2]
[423579346,1780248648000,-500.0,0.00018996,2]
[423579314,1780248648000,-500.90973997,0.00018996,2]
[423579344,1780248648000,-501.68411549,0.00018996,2]
[423579347,1780248648000,-500.0,0.00018996,2]
[423579349,1780248648000,-500.0,0.00018996,2]
[423579352,1780248648000,-151.0,0.00018996,2]
[423579362,1780248648000,-501.19681984,0.00018996,2]
[423579364,1780248648000,-151.0,0.00018996,2]
[423579363,1780248648000,-151.0,0.00018996,2]
[423579351,1780248648000,-500.0,0.00018996,2]
[423579354,1780248648000,-500.0,0.00018996,2]
[423579355,1780248648000,-306.62884248,0.00018996,2]
[423579357,1780248648000,-500.0,0.00018996,2]
[423579353,1780248648000,-500.0,0.00018996,2]
[423579358,1780248648000,-500.0,0.00018996,2]
[423579335,1780248648000,-500.0,0.00018996,2]
[423579348,1780248648000,-622.17669171,0.00018996,2]
[423579331,1780248648000,-500.0,0.00018996,2]
[423579309,1780248648000,-500.0,0.00018996,2]
[423579338,1780248648000,-500.0,0.00018996,2]
[423579360,1780248648000,-151.0,0.00018996,2]
[423579299,1780248648000,-500.8166303,0.00018996,2]
[423579310,1780248648000,-500.0,0.00018996,2]
[423579311,1780248648000,-501.22802295,0.00018996,2]
[423579304,1780248648000,-500.75831427,0.00018996,2]
[423579307,1780248648000,-500.0,0.00018996,2]
[423579306,1780248648000,-500.0,0.00018996,2]
[423579300,1780248648000,-501.20850948,0.00018996,2]
[423579305,1780248648000,-500.88135308,0.00018996,2]
[423579308,1780248648000,-500.0,0.00018996,2]
[423579303,1780248648000,-507.55701291,0.00018996,2]
[423579301,1780248648000,-1002.55947041,0.00018996,2]
[423579302,1780248648000,-501.3010283,0.00018996,2]
[423579323,1780248648000,-501.07822343,0.00018996,2]
[423579320,1780248648000,-500.0,0.00018996,2]
[423579315,1780248648000,-500.0,0.00018996,2]
[423579316,1780248648000,-500.0,0.00018996,2]
[423579321,1780248648000,-273.86801238,0.00018996,2]
[423579318,1780248648000,-500.0,0.00018996,2]
[423579325,1780248648000,-500.97773255,0.00018996,2]
[423579317,1780248648000,-500.0,0.00018996,2]
[423579312,1780248648000,-500.2037908,0.00018996,2]
[423579313,1780248648000,-500.0,0.00018996,2]
[423579319,1780248648000,-500.6541299,0.00018996,2]
[423579322,1780248648000,-501.14470839,0.00018996,2]
[423579324,1780248648000,-500.82532295,0.00018996,2]
[423579326,1780248648000,-500.94412797,0.00018996,2]
[423579337,1780248648000,-500.0,0.00018996,2]
[423579327,1780248648000,-151.0,0.00018996,2]
[423579328,1780248648000,-500.0,0.00018996,2]
[423579359,1780248648000,-500.0,0.00018996,2]
[423579356,1780248648000,-501.01912894,0.00018996,2]
[423579421,1780248648000,-500.50859171,0.00018996,2]
[423579395,1780248648000,-500.0,0.00018996,2]
[423579401,1780248648000,-500.0,0.00018996,2]
[423579397,1780248648000,-500.0,0.00018996,2]
[423579400,1780248648000,-316.39547106,0.00018996,2]
[423579404,1780248648000,-500.0,0.00018996,2]
[423579403,1780248648000,-500.0,0.00018996,2]
[423579412,1780248648000,-500.0,0.00018996,2]
[423579414,1780248648000,-500.0,0.00018996,2]
[423579406,1780248648000,-500.0,0.00018996,2]
[423579413,1780248648000,-500.0,0.00018996,2]
[423579408,1780248648000,-500.0,0.00018996,2]
[423579405,1780248648000,-500.0,0.00018996,2]
[423579411,1780248648000,-500.0,0.00018996,2]
[423579409,1780248648000,-500.0,0.00018996,2]
[423579407,1780248648000,-500.0,0.00018996,2]
[423579416,1780248648000,-500.0,0.00018996,2]
[423579426,1780248648000,-500.61672081,0.00018996,2]
[423579427,1780248648000,-500.0,0.00018996,2]
[423579428,1780248648000,-500.98594337,0.00018996,2]
[423579415,1780248648000,-500.0,0.00018996,2]
[423579417,1780248648000,-574.71244229,0.00018996,2]
[423579418,1780248648000,-500.0,0.00018996,2]
[423579422,1780248648000,-500.0,0.00018996,2]
[423579425,1780248648000,-500.0,0.00018996,2]
[423579419,1780248648000,-500.0,0.00018996,2]
[423579420,1780248648000,-500.0,0.00018996,2]
[423579424,1780248648000,-500.27264121,0.00018996,2]
[423579423,1780248648000,-500.0,0.00018996,2]
[423579361,1780248648000,-500.0,0.00018996,2]
[423579398,1780248648000,-501.08665861,0.00018996,2]
[423579399,1780248648000,-500.0,0.00018996,2]
[423579410,1780248648000,-500.0,0.00018996,2]
[423579402,1780248648000,-500.0,0.00018996,2]
[423579396,1780248648000,-500.0,0.00018996,2]
[423579367,1780248648000,-500.0,0.00018996,2]
[423579368,1780248648000,-506.7968952,0.00018996,2]
[423579366,1780248648000,-500.0,0.00018996,2]
[423579369,1780248648000,-500.0,0.00018996,2]
[423579370,1780248648000,-500.0,0.00018996,2]
[423579377,1780248648000,-500.0,0.00018996,2]
[423579378,1780248648000,-500.84557451,0.00018996,2]
[423579371,1780248648000,-500.0,0.00018996,2]
[423579372,1780248648000,-501.50201455,0.00018996,2]
[423579374,1780248648000,-500.0,0.00018996,2]
[423579373,1780248648000,-500.9060814,0.00018996,2]
[423579376,1780248648000,-500.0,0.00018996,2]
[423579375,1780248648000,-500.0,0.00018996,2]
[423579380,1780248648000,-500.0,0.00018996,2]
[423579365,1780248648000,-500.85482968,0.00018996,2]
[423579392,1780248648000,-500.0,0.00018996,2]
[423579390,1780248648000,-500.0,0.00018996,2]
[423579394,1780248648000,-500.0,0.00018996,2]
[423579389,1780248648000,-500.0,0.00018996,2]
[423579387,1780248648000,-500.0,0.00018996,2]
[423579383,1780248648000,-500.0,0.00018996,2]
[423579384,1780248648000,-500.0,0.00018996,2]
[423579391,1780248648000,-500.0,0.00018996,2]
[423579393,1780248648000,-501.58000671,0.00018996,2]
[423579386,1780248648000,-533.67151913,0.00018996,2]
[423579385,1780248648000,-500.0,0.00018996,2]
[423579379,1780248648000,-500.0,0.00018996,2]
[423579381,1780248648000,-500.0,0.00018996,2]
[423579382,1780248648000,-518.82340343,0.00018996,2]
[423579388,1780248648000,-500.67087394,0.00018996,2]
[423579472,1780248649000,-500.0,0.00018999,2]
[423579471,1780248649000,-506.3000454,0.00018999,2]
[423579480,1780248649000,-500.0,0.00019108,2]
[423579481,1780248649000,-591.15,0.00019108,2]
[423579468,1780248649000,-500.0,0.00018999,2]
[423579470,1780248649000,-500.0,0.00018999,2]
[423579465,1780248649000,-151.0,0.00018999,2]
[423579463,1780248649000,-503.32133543,0.00018999,2]
[423579462,1780248649000,-504.57757265,0.00018999,2]
[423579461,1780248649000,-289.081126,0.00018999,2]
[423579460,1780248649000,-151.0,0.00018999,2]
[423579469,1780248649000,-501.16259447,0.00018999,2]
[423579464,1780248649000,-502.21344349,0.00018999,2]
[423579473,1780248649000,-500.0,0.00018999,2]
[423579484,1780248649000,-552.58,0.00019138,2]
[423579476,1780248649000,-500.0,0.00019107,2]
[423579475,1780248649000,-1028.27,0.00019107,2]
[423579474,1780248649000,-559.57,0.00019107,2]
[423579477,1780248649000,-500.0,0.00019107,2]
[423579479,1780248649000,-500.0,0.00019108,2]
[423579482,1780248649000,-500.0,0.00019138,2]
[423579487,1780248649000,-534.45,0.00019138,2]
[423579486,1780248649000,-526.32,0.00019138,2]
[423579493,1780248649000,-500.0,0.00019139,2]
[423579494,1780248649000,-500.0,0.00019139,2]
[423579491,1780248649000,-3745.47,0.00019138,2]
[423579483,1780248649000,-1348.75,0.00019138,2]
[423579495,1780248649000,-944.99,0.00019139,2]
[423579456,1780248649000,-500.0,0.00018999,2]
[423579478,1780248649000,-500.0,0.00019108,2]
[423579457,1780248649000,-500.74761303,0.00018999,2]
[423579485,1780248649000,-500.0,0.00019138,2]
[423579467,1780248649000,-500.0,0.00018999,2]
[423579430,1780248649000,-500.0,0.00018996,2]
[423579440,1780248649000,-500.0,0.00018996,2]
[423579441,1780248649000,-500.0,0.00018996,2]
[423579429,1780248649000,-500.0,0.00018996,2]
[423579436,1780248649000,-211.37799693,0.00018996,2]
[423579431,1780248649000,-541.59703694,0.00018996,2]
[423579433,1780248649000,-501.44201956,0.00018996,2]
[423579432,1780248649000,-500.0,0.00018996,2]
[423579434,1780248649000,-500.0,0.00018996,2]
[423579435,1780248649000,-500.0,0.00018996,2]
[423579437,1780248649000,-558.47307686,0.00018996,2]
[423579438,1780248649000,-500.0,0.00018996,2]
[423579439,1780248649000,-500.0,0.00018996,2]
[423579443,1780248649000,-500.0,0.00018996,2]
[423579448,1780248649000,-500.0,0.00018999,2]
[423579453,1780248649000,-151.0,0.00018999,2]
[423579447,1780248649000,-508.02230211,0.00018999,2]
[423579442,1780248649000,-507.10839453,0.00018996,2]
[423579444,1780248649000,-500.0,0.00018996,2]
[423579452,1780248649000,-500.0,0.00018999,2]
[423579454,1780248649000,-151.0,0.00018999,2]
[423579445,1780248649000,-500.0,0.00018996,2]
[423579451,1780248649000,-500.0,0.00018999,2]
[423579449,1780248649000,-500.0,0.00018999,2]
[423579446,1780248649000,-174.78478396,0.00018996,2]
[423579450,1780248649000,-500.0,0.00018999,2]
[423579455,1780248649000,-500.0,0.00018999,2]
[423579458,1780248649000,-151.0,0.00018999,2]
[423579459,1780248649000,-151.0,0.00018999,2]
[423579466,1780248649000,-500.0,0.00018999,2]
[423579490,1780248649000,-500.0,0.00019138,2]
[423579555,1780248649000,-500.0,0.0001927,2]
[423579489,1780248649000,-1567.21,0.00019138,2]
[423579526,1780248649000,-500.0,0.0001927,2]
[423579530,1780248649000,-500.0,0.0001927,2]
[423579524,1780248649000,-500.0,0.0001927,2]
[423579527,1780248649000,-500.0,0.0001927,2]
[423579534,1780248649000,-151.0,0.0001927,2]
[423579544,1780248649000,-500.0,0.0001927,2]
[423579546,1780248649000,-589.4342816,0.0001927,2]
[423579545,1780248649000,-500.0,0.0001927,2]
[423579536,1780248649000,-500.0,0.0001927,2]
[423579543,1780248649000,-500.0,0.0001927,2]
[423579541,1780248649000,-164.27788014,0.0001927,2]
[423579535,1780248649000,-151.0,0.0001927,2]
[423579488,1780248649000,-500.0,0.00019138,2]
[423579542,1780248649000,-500.0,0.0001927,2]
[423579533,1780248649000,-500.0,0.0001927,2]
[423579538,1780248649000,-500.0,0.0001927,2]
[423579537,1780248649000,-562.1002464,0.0001927,2]
[423579540,1780248649000,-500.0,0.0001927,2]
[423579547,1780248649000,-500.0,0.0001927,2]
[423579549,1780248649000,-500.41888453,0.0001927,2]
[423579550,1780248649000,-500.0,0.0001927,2]
[423579551,1780248649000,-500.0,0.0001927,2]
[423579552,1780248649000,-500.0,0.0001927,2]
[423579553,1780248649000,-500.0,0.0001927,2]
[423579548,1780248649000,-500.0,0.0001927,2]
[423579557,1780248649000,-500.0,0.0001927,2]
[423579558,1780248649000,-500.0,0.0001927,2]
[423579554,1780248649000,-500.83037712,0.0001927,2]
[423579556,1780248649000,-500.0,0.0001927,2]
[423579531,1780248649000,-500.0,0.0001927,2]
[423579525,1780248649000,-500.0,0.0001927,2]
[423579539,1780248649000,-500.0,0.0001927,2]
[423579529,1780248649000,-500.0,0.0001927,2]
[423579492,1780248649000,-1807.05,0.00019138,2]
[423579532,1780248649000,-500.0,0.0001927,2]
[423579497,1780248649000,-603.91,0.00019139,2]
[423579507,1780248649000,-500.0,0.0001927,2]
[423579509,1780248649000,-500.0,0.0001927,2]
[423579508,1780248649000,-500.0,0.0001927,2]
[423579496,1780248649000,-500.0,0.00019139,2]
[423579498,1780248649000,-500.0,0.00019139,2]
[423579504,1780248649000,-603.85,0.00019139,2]
[423579502,1780248649000,-817.3533,0.00019139,2]
[423579506,1780248649000,-312.22243,0.00019156,2]
[423579500,1780248649000,-500.0,0.00019139,2]
[423579505,1780248649000,-500.0,0.00019139,2]
[423579503,1780248649000,-572.53,0.00019139,2]
[423579501,1780248649000,-542.05,0.00019139,2]
[423579499,1780248649000,-1670.88,0.00019139,2]
[423579512,1780248649000,-500.0,0.0001927,2]
[423579510,1780248649000,-500.0,0.0001927,2]
[423579528,1780248649000,-500.0,0.0001927,2]
[423579523,1780248649000,-500.0,0.0001927,2]
[423579521,1780248649000,-500.0,0.0001927,2]
[423579520,1780248649000,-500.0,0.0001927,2]
[423579519,1780248649000,-500.0,0.0001927,2]
[423579518,1780248649000,-500.0,0.0001927,2]
[423579522,1780248649000,-500.0,0.0001927,2]
[423579516,1780248649000,-500.0,0.0001927,2]
[423579514,1780248649000,-500.0,0.0001927,2]
[423579515,1780248649000,-500.0,0.0001927,2]
[423579513,1780248649000,-500.0,0.0001927,2]
[423579511,1780248649000,-500.0,0.0001927,2]
[423579517,1780248649000,-500.0,0.0001927,2]
[423579611,1780248650000,-500.0,0.0001927,2]
[423579605,1780248650000,-500.0,0.0001927,2]
[423579610,1780248650000,-501.59952013,0.0001927,2]
[423579600,1780248650000,-503.44772807,0.0001927,2]
[423579595,1780248650000,-502.00734176,0.0001927,2]
[423579593,1780248650000,-500.83543227,0.0001927,2]
[423579589,1780248650000,-500.7130663,0.0001927,2]
[423579590,1780248650000,-500.0,0.0001927,2]
[423579596,1780248650000,-500.58896812,0.0001927,2]
[423579591,1780248650000,-502.62224746,0.0001927,2]
[423579594,1780248650000,-500.0,0.0001927,2]
[423579601,1780248650000,-500.0,0.0001927,2]
[423579597,1780248650000,-500.0,0.0001927,2]
[423579602,1780248650000,-501.13922713,0.0001927,2]
[423579613,1780248650000,-377.83735542,0.00019273,2]
[423579609,1780248650000,-500.0,0.0001927,2]
[423579599,1780248650000,-167.27263594,0.0001927,2]
[423579603,1780248650000,-500.0,0.0001927,2]
[423579606,1780248650000,-501.24156836,0.0001927,2]
[423579608,1780248650000,-500.0,0.0001927,2]
[423579607,1780248650000,-500.0,0.0001927,2]
[423579604,1780248650000,-500.63837741,0.0001927,2]
[423579623,1780248650000,-500.0,0.00019273,2]
[423579614,1780248650000,-500.0,0.00019273,2]
[423579625,1780248650000,-500.0,0.00019273,2]
[423579624,1780248650000,-500.0,0.00019273,2]
[423579626,1780248650000,-500.0,0.00019273,2]
[423579592,1780248650000,-503.4558794,0.0001927,2]
[423579612,1780248650000,-500.0,0.0001927,2]
[423579587,1780248650000,-636.04616426,0.0001927,2]
[423579632,1780248650000,-500.0,0.00019381,2]
[423579598,1780248650000,-501.59531447,0.0001927,2]
[423579615,1780248650000,-500.0,0.00019273,2]
[423579559,1780248650000,-500.0,0.0001927,2]
[423579560,1780248650000,-500.0,0.0001927,2]
[423579562,1780248650000,-500.0,0.0001927,2]
[423579561,1780248650000,-500.0,0.0001927,2]
[423579572,1780248650000,-500.0,0.0001927,2]
[423579573,1780248650000,-500.0,0.0001927,2]
[423579566,1780248650000,-500.0,0.0001927,2]
[423579563,1780248650000,-500.0,0.0001927,2]
[423579568,1780248650000,-500.0,0.0001927,2]
[423579564,1780248650000,-500.0,0.0001927,2]
[423579565,1780248650000,-500.0,0.0001927,2]
[423579571,1780248650000,-500.0,0.0001927,2]
[423579570,1780248650000,-500.0,0.0001927,2]
[423579567,1780248650000,-500.0,0.0001927,2]
[423579569,1780248650000,-500.0,0.0001927,2]
[423579579,1780248650000,-500.0,0.0001927,2]
[423579577,1780248650000,-500.0,0.0001927,2]
[423579580,1780248650000,-500.0,0.0001927,2]
[423579574,1780248650000,-500.0,0.0001927,2]
[423579575,1780248650000,-500.0,0.0001927,2]
[423579578,1780248650000,-500.0,0.0001927,2]
[423579586,1780248650000,-500.0,0.0001927,2]
[423579585,1780248650000,-501.8163403,0.0001927,2]
[423579576,1780248650000,-500.0,0.0001927,2]
[423579584,1780248650000,-542.24453119,0.0001927,2]
[423579582,1780248650000,-500.0,0.0001927,2]
[423579581,1780248650000,-500.0,0.0001927,2]
[423579583,1780248650000,-500.0,0.0001927,2]
[423579588,1780248650000,-500.0,0.0001927,2]
[423579620,1780248650000,-151.0,0.00019273,2]
[423579649,1780248650000,-944.99,0.00019413,2]
[423579617,1780248650000,-500.0,0.00019273,2]
[423579650,1780248650000,-500.0,0.00019413,2]
[423579654,1780248650000,-500.0,0.00019413,2]
[423579655,1780248650000,-542.05,0.00019413,2]
[423579659,1780248650000,-500.0,0.00019413,2]
[423579656,1780248650000,-817.3533,0.00019413,2]
[423579657,1780248650000,-572.53,0.00019413,2]
[423579658,1780248650000,-603.85,0.00019413,2]
[423579663,1780248650000,-500.0,0.00019544,2]
[423579673,1780248650000,-500.0,0.00019544,2]
[423579662,1780248650000,-500.0,0.00019544,2]
[423579674,1780248650000,-500.0,0.00019544,2]
[423579667,1780248650000,-500.0,0.00019544,2]
[423579668,1780248650000,-500.0,0.00019544,2]
[423579660,1780248650000,-500.0,0.00019544,2]
[423579671,1780248650000,-500.0,0.00019544,2]
[423579669,1780248650000,-500.0,0.00019544,2]
[423579672,1780248650000,-500.0,0.00019544,2]
[423579664,1780248650000,-500.0,0.00019544,2]
[423579665,1780248650000,-500.0,0.00019544,2]
[423579670,1780248650000,-500.0,0.00019544,2]
[423579677,1780248650000,-500.0,0.00019544,2]
[423579675,1780248650000,-500.0,0.00019544,2]
[423579678,1780248650000,-500.0,0.00019544,2]
[423579684,1780248650000,-500.0,0.00019544,2]
[423579681,1780248650000,-500.0,0.00019544,2]
[423579679,1780248650000,-500.0,0.00019544,2]
[423579680,1780248650000,-500.0,0.00019544,2]
[423579616,1780248650000,-500.0,0.00019273,2]
[423579666,1780248650000,-500.0,0.00019544,2]
[423579661,1780248650000,-500.0,0.00019544,2]
[423579676,1780248650000,-555.74966597,0.00019544,2]
[423579653,1780248650000,-1670.88,0.00019413,2]
[423579652,1780248650000,-500.0,0.00019413,2]
[423579619,1780248650000,-151.0,0.00019273,2]
[423579618,1780248650000,-500.0,0.00019273,2]
[423579621,1780248650000,-151.0,0.00019273,2]
[423579627,1780248650000,-500.0,0.00019273,2]
[423579628,1780248650000,-500.0,0.00019273,2]
[423579629,1780248650000,-559.57,0.00019381,2]
[423579634,1780248650000,-500.0,0.00019382,2]
[423579682,1780248650000,-565.32,0.00019544,2]
[423579631,1780248650000,-441.64,0.00019381,2]
[423579630,1780248650000,-1028.27,0.00019381,2]
[423579633,1780248650000,-500.0,0.00019382,2]
[423579635,1780248650000,-500.0,0.00019382,2]
[423579636,1780248650000,-591.15,0.00019382,2]
[423579622,1780248650000,-151.0,0.00019273,2]
[423579637,1780248650000,-500.0,0.00019412,2]
[423579638,1780248650000,-1348.75,0.00019412,2]
[423579683,1780248650000,-500.0,0.00019544,2]
[423579651,1780248650000,-603.91,0.00019413,2]
[423579641,1780248650000,-534.45,0.00019412,2]
[423579639,1780248650000,-552.58,0.00019412,2]
[423579640,1780248650000,-500.0,0.00019412,2]
[423579648,1780248650000,-500.0,0.00019413,2]
[423579647,1780248650000,-500.0,0.00019413,2]